bitfinex/quotes_ETHUSD_20251018
["timestamp","ask_amount","ask_price","bid_price","bid_amount"]
[1760810614363,0.04469205,3900.0,3899.8,0.4611]
[1760810615470,0.04469205,3900.0,3899.7,0.2326]
[1760810615471,0.6336,3899.8,3899.7,0.2326]
[1760810615692,0.6336,3899.8,3899.7,0.6937]
[1760810618760,0.6336,3899.8,3899.7,0.4611]
[1760810620502,2.40629368,3899.8,3899.7,0.4611]
[1760810621007,4.97052774,3899.8,3899.7,0.4611]
[1760810621176,2.40629368,3899.8,3899.7,0.4611]
[1760810622165,4.97052774,3899.8,3899.6,0.002]
[1760810622371,4.92589981,3899.7,3899.6,0.002]
[1760810623167,23.41589781,3899.7,3899.6,0.002]
[1760810623474,7.78589081,3899.7,3899.6,0.002]
[1760810624199,12.19470381,3899.7,3899.6,0.002]
[1760810624899,12.32920381,3899.7,3899.6,0.002]
[1760810625270,14.50038881,3899.7,3899.6,0.002]
[1760810626300,22.84723389,3899.7,3899.6,0.002]
[1760810626514,15.53959889,3899.7,3899.6,0.002]
[1760810626802,14.91999863,3899.7,3899.6,0.002]
[1760810627112,14.87529789,3899.7,3899.6,0.002]
[1760810627278,4.39517689,3899.7,3899.6,0.002]
[1760810627602,6.90097581,3899.7,3899.6,0.002]
[1760810627817,7.53457581,3899.7,3899.6,0.002]
[1760810627997,6.90097581,3899.7,3899.6,0.002]
[1760810628394,8.12140681,3899.7,3899.6,0.002]
[1760810628600,8.75500681,3899.7,3899.6,0.002]
[1760810629414,14.06396227,3899.7,3899.6,0.002]
[1760810630021,10.47119527,3899.7,3899.6,0.002]
[1760810630389,10.67437527,3899.7,3899.6,0.002]
[1760810630705,4.66264446,3899.7,3899.6,0.4631]
[1760810630882,2.40630746,3899.7,3899.6,0.4631]
[1760810631308,4.79895146,3899.7,3899.6,0.4631]
[1760810631719,2.40630746,3899.7,3899.6,0.4631]
[1760810632426,12.92981279,3899.7,3899.6,0.4631]
[1760810632608,12.92981279,3899.7,3899.6,0.002]
[1760810633123,9.6742266,3899.7,3899.6,0.002]
[1760810633310,12.4309976,3899.7,3899.6,0.002]
[1760810633511,12.7121496,3899.7,3899.6,0.002]
[1760810634225,15.4133746,3899.7,3899.6,0.002]
[1760810634397,13.7542316,3899.7,3899.6,0.002]
[1760810634787,11.18993179,3899.7,3899.6,0.002]
[1760810634993,13.7542316,3899.7,3899.6,0.002]
[1760810635189,9.95224779,3899.7,3899.6,0.002]
[1760810635417,12.5165476,3899.7,3899.6,0.002]
[1760810635796,9.95224779,3899.7,3899.6,0.002]
[1760810636201,10.39921579,3899.7,3899.6,0.002]
[1760810636520,10.35450833,3899.7,3899.6,0.002]
[1760810636818,12.91880814,3899.7,3899.6,0.002]
[1760810637190,9.62951914,3899.7,3899.6,0.002]
[1760810637391,15.76177814,3899.7,3899.6,0.002]
[1760810639828,15.80648343,3899.7,3899.6,0.002]
[1760810640530,9.67422443,3899.7,3899.6,0.002]
[1760810640729,9.36200662,3899.7,3899.6,0.002]
[1760810641122,11.92630643,3899.7,3899.6,0.002]
[1760810641628,14.37188043,3899.7,3899.6,0.002]
[1760810642324,22.1281651,3899.4,3899.3,0.002]
[1760810642632,23.8606711,3899.4,3899.3,0.002]
[1760810642852,23.4806091,3899.4,3899.3,0.002]
[1760810643021,23.88295182,3899.4,3899.3,0.002]
[1760810643227,28.67158187,3899.3,3899.2,0.002]
[1760810643422,26.6754602,3899.3,3899.2,0.002]
[1760810643748,23.3875722,3899.3,3899.2,0.002]
[1760810643944,4.92636019,3899.0,3898.8,0.002]
[1760810644253,26.09133019,3899.0,3898.8,0.002]
[1760810644454,26.22583019,3899.0,3898.8,0.002]
[1760810644641,32.16916302,3899.0,3898.8,0.002]
[1760810645014,30.32096602,3899.0,3898.8,0.002]
[1760810645850,25.60628102,3899.0,3898.8,0.002]
[1760810646419,26.29748102,3899.0,3898.8,0.002]
[1760810646724,0.6336,3898.3,3897.4,0.4722]
[1760810646924,2.3616,3897.6,3897.4,0.4722]
[1760810647125,2.3616,3897.6,3897.5,0.4702]
[1760810647362,2.3616,3897.6,3897.4,0.002]
[1760810647363,5.32979102,3897.6,3897.4,0.002]
[1760810647647,10.235033,3897.5,3897.4,0.002]
[1760810647851,8.839033,3897.5,3897.4,0.002]
[1760810648069,6.403033,3897.5,3897.4,0.002]
[1760810648616,7.790949,3897.5,3897.4,0.002]
[1760810648849,6.403348,3897.5,3897.4,0.002]
[1760810649746,7.888263,3897.5,3897.4,0.002]
[1760810650120,7.93299003,3897.5,3897.4,0.002]
[1760810650552,6.73506603,3897.5,3897.4,0.002]
[1760810650745,8.81808303,3897.5,3897.4,0.002]
[1760810651147,2.40632703,3897.5,3897.4,0.002]
[1760810651348,5.86672703,3897.5,3897.4,0.002]
[1760810651560,2.40632703,3897.5,3897.4,0.4722]
[1760810652757,5.09965003,3897.5,3897.4,0.4722]
[1760810653234,2.40632703,3897.5,3897.4,0.4722]
[1760810653436,5.08681803,3897.5,3897.4,0.002]
[1760810653982,4.59471403,3897.5,3897.4,0.002]
[1760810654158,8.60827303,3897.5,3897.4,0.002]
[1760810655220,7.03293503,3897.5,3897.4,0.002]
[1760810656252,10.6770993,3897.5,3897.4,0.002]
[1760810656630,8.11135203,3897.5,3897.4,0.002]
[1760810657045,10.6770993,3897.5,3897.4,0.002]
[1760810657331,8.79810903,3897.5,3897.4,0.002]
[1760810657757,7.03574603,3897.5,3897.4,0.002]
[1760810657958,2.40632703,3897.5,3897.4,0.002]
[1760810658691,2.40632703,3897.5,3897.4,0.4722]
[1760810659176,2.40632703,3897.5,3897.4,0.002]
[1760810660079,1.77272703,3897.5,3897.4,0.4722]
[1760810660442,0.67832703,3897.5,3897.4,0.4722]
[1760810660853,0.6336,3897.5,3897.4,0.4722]
[1760810663383,0.67831911,3897.5,3897.4,0.4722]
[1760810663584,0.04471911,3897.5,3897.4,3.0380131]
[1760810663882,0.04471911,3897.5,3897.4,0.80165732]
[1760810664200,0.04471911,3897.5,3897.4,3.36747042]
[1760810666471,0.128,3898.0,3897.7,2.56557219]
[1760810666974,0.128,3898.0,3897.8,0.4702]
[1760810667348,0.128,3898.0,3897.9,0.4702]
[1760810667550,0.6336,3898.5,3897.9,0.4702]
[1760810667770,0.6336,3898.5,3898.4,0.2289]
[1760810667969,0.6336,3898.5,3898.4,0.6991]
[1760810668448,2.13037551,3898.8,3898.4,0.6991]
[1760810668654,0.6336,3898.7,3898.5,0.4702]
[1760810668856,0.6336,3898.7,3898.6,0.4702]
[1760810671305,0.67831086,3898.7,3898.6,0.4702]
[1760810671880,0.6336,3898.5,3898.4,0.2289]
[1760810672085,0.6336,3898.6,3898.4,0.2289]
[1760810672594,0.6336,3898.6,3898.4,0.6991]
[1760810672912,0.6336,3898.6,3898.5,0.4702]
[1760810673100,0.17271086,3898.7,3898.5,0.4702]
[1760810673305,0.6336,3898.6,3898.4,0.2289]
[1760810673500,0.128,3898.4,3898.1,0.4702]
[1760810673712,0.128,3898.4,3898.2,0.6991]
[1760810674078,0.6336,3898.3,3898.2,0.6991]
[1760810674278,0.6336,3898.1,3897.8,0.4616]
[1760810674529,0.6336,3898.3,3897.9,0.4616]
[1760810674822,0.04471414,3898.1,3897.9,0.4616]
[1760810676421,0.6336,3897.8,3897.5,0.4616]
[1760810676584,0.7616,3897.7,3897.6,0.4616]
[1760810679915,0.80631545,3897.7,3897.6,0.4616]
[1760810681779,0.80631545,3897.7,3897.6,3.02728144]
[1760810681980,0.04471545,3897.7,3897.6,0.76452814]
[1760810682223,0.04471545,3897.7,3897.6,0.4616]
[1760810682618,0.04471545,3897.7,3897.6,3.02728144]
[1760810682802,0.04471545,3897.7,3897.6,3.15528144]
[1760810684722,0.04471545,3897.7,3897.6,0.128]
[1760810684910,0.04471545,3897.7,3897.6,0.5896]
[1760810685114,0.04471545,3897.7,3897.6,3.47102015]
[1760810686097,0.04471545,3897.7,3897.6,0.90533871]
[1760810686596,0.04471545,3897.7,3897.6,3.15528144]
[1760810689822,0.6336,3898.2,3897.8,2.56549764]
[1760810690025,0.04471103,3898.1,3897.8,2.56549764]
[1760810690199,0.6336,3898.0,3897.9,0.4616]
[1760810690523,0.6336,3898.2,3897.9,3.02708397]
[1760810690930,0.6336,3898.2,3897.9,2.56548397]
[1760810691131,0.6336,3898.2,3898.0,0.4616]
[1760810692334,0.6336,3898.6,3898.1,0.6767]
[1760810692638,0.6336,3898.6,3898.2,3.84999997]
[1760810692936,0.6336,3898.4,3898.2,3.84999997]
[1760810693731,0.6336,3898.4,3898.3,0.4616]
[1760810693934,0.6336,3898.4,3898.2,3.84999997]
[1760810696811,0.6336,3898.4,3898.2,0.7220077]
[1760810697011,0.001,3898.8,3898.7,2.56495754]
[1760810697407,0.001,3898.8,3898.7,3.02655754]
[1760810698508,0.001,3898.8,3898.7,0.4616]
[1760810700723,0.001,3898.8,3898.7,3.02655754]
[1760810701837,0.001,3898.8,3898.7,0.4616]
[1760810702149,0.001,3898.8,3898.5,1.728]
[1760810704048,0.001,3898.8,3898.4,3.84999997]
[1760810704739,0.001,3898.8,3897.9,1.728]
[1760810705047,0.0994,3898.7,3897.8,3.84999997]
[1760810705253,0.0994,3898.7,3897.9,1.728]
[1760810705614,0.0994,3898.7,3897.8,6.86473191]
[1760810706345,0.0994,3898.7,3898.0,0.002]
[1760810706542,4.70361933,3898.6,3898.0,0.002]
[1760810706746,0.6336,3898.5,3898.0,0.002]
[1760810706946,0.7616,3898.1,3898.0,0.002]
[1760810709214,0.80631434,3898.1,3898.0,0.002]
[1760810710314,0.90571434,3898.1,3898.0,0.002]
[1760810710526,7.84829834,3898.1,3898.0,0.002]
[1760810711517,2.53431434,3898.1,3898.0,0.002]
[1760810711755,2.63371434,3898.1,3898.0,0.002]
[1760810711939,2.53431434,3898.1,3898.0,0.002]
[1760810712140,2.40631434,3898.1,3898.0,0.002]
[1760810713267,0.17271434,3898.1,3898.0,0.4318]
[1760810714853,0.17271434,3898.1,3898.0,0.002]
[1760810715060,0.80631434,3898.1,3898.0,0.002]
[1760810716322,0.80631434,3898.1,3897.1,0.002]
[1760810716323,2.56548397,3897.9,3897.1,0.002]
[1760810716554,7.06521933,3897.2,3897.1,0.002]
[1760810717057,7.16461933,3897.2,3897.1,0.002]
[1760810717356,9.73056411,3897.2,3897.1,0.002]
[1760810717557,34.80065711,3897.2,3897.1,0.002]
[1760810717885,18.82949511,3897.2,3897.1,0.002]
[1760810718242,19.2320398,3897.2,3897.1,0.002]
[1760810718558,10.1331088,3897.2,3897.1,0.002]
[1760810718861,15.3434788,3897.2,3897.1,0.002]
[1760810719059,7.56716402,3897.2,3897.1,0.002]
[1760810719226,14.8581808,3897.2,3897.1,0.002]
[1760810719431,14.90291334,3897.2,3897.1,0.002]
[1760810719760,21.38192634,3897.2,3897.1,0.002]
[1760810719961,20.09942634,3897.2,3897.1,0.002]
[1760810720257,15.99779834,3897.2,3897.1,0.002]
[1760810720655,18.33772534,3897.2,3897.1,0.002]
[1760810721036,10.77761656,3897.2,3897.1,0.002]
[1760810721242,7.51249656,3897.2,3897.1,0.002]
[1760810721443,10.07844134,3897.2,3897.1,0.002]
[1760810721663,7.51249656,3897.2,3897.1,0.002]
[1760810722384,10.07844134,3897.2,3897.1,0.002]
[1760810722890,7.51249656,3897.2,3897.1,0.002]
[1760810723088,10.07844134,3897.2,3897.1,0.002]
[1760810723484,17.27606334,3897.2,3897.1,0.002]
[1760810723692,16.29021034,3897.2,3897.1,0.002]
[1760810724582,16.15802334,3897.2,3897.1,0.002]
[1760810724889,7.51249656,3897.2,3897.1,0.002]
[1760810725470,10.07844134,3897.2,3897.1,0.002]
[1760810726768,21.82841434,3897.2,3897.1,0.002]
[1760810726972,19.29842134,3897.2,3897.1,0.002]
[1760810727388,19.39782134,3897.2,3897.1,0.002]
[1760810727781,17.47993334,3897.2,3897.1,0.002]
[1760810727985,17.09710734,3897.2,3897.1,0.002]
[1760810728500,16.84432634,3897.2,3897.1,0.002]
[1760810729093,7.51249656,3897.2,3897.1,0.002]
[1760810729771,10.07844134,3897.2,3897.1,0.002]
[1760810732280,7.51249656,3897.2,3897.1,0.002]
[1760810732803,10.07844134,3897.2,3897.1,0.002]
[1760810733101,7.51249656,3897.2,3897.1,0.002]
[1760810733601,5.38195187,3897.2,3897.1,0.002]
[1760810734179,35.13585965,3897.2,3897.1,0.002]
[1760810734384,24.18808065,3897.2,3897.1,0.002]
[1760810734586,26.01548065,3897.2,3897.1,0.002]
[1760810735380,26.73771965,3897.2,3897.1,0.002]
[1760810736106,19.990524,3896.6,3896.3,0.002]
[1760810736411,2.3616,3896.0,3895.9,0.002]
[1760810736584,9.63195444,3896.0,3895.9,0.002]
[1760810736801,14.17837844,3896.0,3895.9,0.002]
[1760810736998,7.06521933,3896.0,3895.9,0.002]
[1760810737214,11.77372644,3896.0,3895.9,0.002]
[1760810737591,22.82907544,3896.0,3895.9,0.002]
[1760810738088,23.23174735,3896.0,3895.9,0.002]
[1760810738419,0.6336,3895.4,3894.8,0.4651]
[1760810738620,0.6336,3895.1,3894.8,0.4651]
[1760810738830,0.6336,3895.1,3894.7,0.2352]
[1760810739130,0.6336,3895.1,3894.9,0.4651]
[1760810739420,0.6336,3895.1,3894.7,0.7003]
[1760810739622,0.6336,3895.1,3894.8,0.4651]
[1760810739998,0.6336,3895.1,3894.9,0.4651]
[1760810740198,0.67834931,3895.1,3895.0,0.4651]
[1760810742007,0.04474931,3895.1,3895.0,0.4651]
[1760810742504,0.04474931,3895.1,3895.0,0.79188074]
[1760810742701,0.04474931,3895.1,3895.0,0.4651]
[1760810745201,0.04474931,3895.1,3895.0,3.03249409]
[1760810745400,0.6336,3896.0,3895.1,2.56732178]
[1760810745601,0.6336,3896.0,3895.9,0.2352]
[1760810745821,4.70361933,3896.2,3895.9,0.7003]
[1760810745822,2.3616,3896.1,3895.9,0.7003]
[1760810746228,1.728,3896.1,3896.0,0.4651]
[1760810746711,2.3616,3896.1,3896.0,0.4651]
[1760810748895,2.40634125,3896.1,3896.0,0.4651]
[1760810750723,0.67834125,3896.1,3896.0,0.4651]
[1760810751314,0.80634125,3896.1,3896.0,0.4651]
[1760810756029,0.6336,3896.0,3895.9,0.2352]
[1760810756426,0.17274125,3896.1,3895.9,0.7003]
[1760810756748,0.6336,3896.0,3895.9,0.7003]
[1760810757147,0.6336,3896.0,3895.9,0.2352]
[1760810757533,0.6336,3896.0,3895.6,0.7003]
[1760810757737,0.6336,3895.8,3895.6,0.2352]
[1760810757939,0.6336,3895.8,3895.7,0.4651]
[1760810758425,0.6336,3895.8,3895.2,0.128]
[1760810758627,0.6336,3895.5,3894.9,0.4651]
[1760810758815,0.6336,3895.3,3894.9,0.4651]
[1760810759148,0.6336,3895.3,3895.1,2.56732574]
[1760810759362,0.128,3895.4,3895.2,0.7003]
[1760810759866,0.128,3895.4,3895.3,0.4651]
[1760810760540,0.6336,3895.3,3895.1,0.002]
[1760810760941,0.6336,3895.3,3895.1,0.4671]
[1760810761841,0.6336,3895.3,3895.1,0.002]
[1760810762238,0.67834373,3895.3,3895.1,0.4671]
[1760810762668,0.67834373,3895.3,3895.1,0.2372]
[1760810762869,0.67834373,3895.3,3895.2,0.4651]
[1760810764538,0.04474373,3895.3,3895.2,3.03236227]
[1760810764739,0.04474373,3895.3,3895.2,3.3593185]
[1760810764959,0.04474373,3895.3,3895.2,3.51299112]
[1760810765174,0.6336,3895.8,3895.4,2.5670712]
[1760810765462,0.6336,3895.8,3895.5,0.4671]
[1760810766345,0.6336,3895.8,3895.6,0.4459]
[1760810766750,0.6336,3895.8,3895.7,0.4459]
[1760810769140,0.6336,3895.8,3895.4,2.56712862]
[1760810769480,0.128,3895.9,3895.5,3.01295711]
[1760810769773,0.128,3895.9,3895.7,2.56690203]
[1760810770171,0.7616,3895.9,3895.8,0.4459]
[1760810770377,0.80633869,3895.9,3895.8,0.4459]
[1760810770752,0.04473869,3895.9,3895.8,0.4459]
[1760810772176,0.04473869,3895.9,3895.8,3.01276688]
[1760810772974,0.001,3896.1,3896.0,2.56673511]
[1760810773170,0.001,3896.1,3896.0,2.59240246]
[1760810773464,0.001,3896.1,3896.0,4.3159]
[1760810774484,0.001,3896.1,3896.0,6.88263511]
[1760810777547,0.001,3896.1,3896.0,3.01263511]
[1760810777752,0.001,3896.1,3896.0,3.99296988]
[1760810778179,0.001,3896.1,3896.0,4.01863723]
[1760810780395,0.001,3896.1,3896.0,3.99296988]
[1760810783099,0.001,3896.1,3896.0,4.12096988]
[1760810790077,0.001,3896.1,3896.0,4.22387052]
[1760810792923,0.001,3896.1,3896.0,3.77797052]
[1760810793201,0.001,3896.1,3896.0,0.128]
[1760810793721,0.1352,3896.1,3896.0,0.128]
[1760810794013,0.001,3896.1,3896.0,0.128]
[1760810795294,0.1352,3896.1,3895.9,0.002]
[1760810796078,0.001,3896.1,3895.9,0.002]
[1760810797211,0.001,3896.1,3895.9,2.5687514]
[1760810797528,0.001,3896.1,3895.9,0.002]
[1760810798496,0.001,3896.1,3895.9,2.56875945]
[1760810799024,0.001,3896.1,3896.0,2.56673511]
[1760810799405,0.001,3896.1,3896.0,3.91989451]
[1760810799604,0.001,3896.1,3896.0,4.04789451]
[1760810800422,0.001,3896.1,3896.0,4.07356186]
[1760810800728,0.001,3896.1,3896.0,4.04789451]
[1760810804129,0.001,3896.1,3896.0,7.91789451]
[1760810806238,0.001,3896.1,3896.0,7.58100176]
[1760810808542,0.001,3896.1,3896.0,8.04590176]
[1760810809911,0.001,3896.1,3896.0,7.58100176]
[1760810810307,0.001,3896.1,3896.0,6.56473511]
[1760810813622,0.001,3896.1,3896.0,7.02963511]
[1760810816054,0.001,3896.1,3896.0,6.56473511]
[1760810821281,0.001,3896.1,3896.0,7.02963511]
[1760810822340,0.001,3896.1,3896.0,7.13254263]
[1760810822740,0.001,3896.1,3896.0,8.10267884]
[1760810825061,0.001,3896.1,3896.0,4.10090752]
[1760810825243,0.001,3896.1,3896.0,3.998]
[1760810826546,0.001,3896.1,3896.0,6.56473511]
[1760810827294,0.001,3896.1,3896.0,3.87]
[1760810827494,0.6336,3896.0,3895.9,0.002]
[1760810827660,0.1342,3896.0,3895.9,0.002]
[1760810832057,5.47141933,3896.0,3895.9,0.002]
[1760810833500,7.19941933,3896.0,3895.9,0.002]
[1760810834718,2.3616,3896.0,3895.9,0.002]
[1760810835619,1.728,3896.0,3895.9,0.002]
[1760810835783,0.001,3896.1,3895.9,0.002]
[1760810836594,0.1352,3896.1,3895.9,0.002]
[1760810837314,0.128,3896.0,3895.9,0.002]
[1760810837521,0.7616,3896.0,3895.9,0.002]
[1760810838601,0.8958,3896.0,3895.9,0.002]
[1760810839921,0.7616,3896.0,3895.9,0.002]
[1760810843818,0.0447408,3896.0,3895.9,0.4325]
[1760810844029,0.0447408,3896.0,3895.9,2.99930099]
[1760810844229,0.0447408,3896.0,3895.9,0.98912901]
[1760810844631,0.0447408,3896.0,3895.9,3.55593]
[1760810845007,0.0447408,3896.0,3895.9,0.98912901]
[1760810845207,0.0447408,3896.0,3895.9,0.002]
[1760810845934,0.0447408,3896.0,3895.9,0.4325]
[1760810850243,0.0447408,3896.0,3895.9,0.5605]
[1760810851842,0.0447408,3896.0,3895.9,0.13]
[1760810852034,0.0447408,3896.0,3895.9,0.002]
[1760810858349,0.0447408,3896.0,3895.9,0.4305]
[1760810858950,0.0457408,3896.0,3895.9,0.4305]
[1760810860544,5.38296013,3896.0,3895.9,0.002]
[1760810860865,10.77452013,3896.0,3895.9,0.002]
[1760810861021,7.87976013,3896.0,3895.9,0.002]
[1760810861221,10.01541133,3896.0,3895.9,0.002]
[1760810861925,8.28741133,3896.0,3895.9,0.002]
[1760810862138,16.55621544,3896.0,3895.9,0.002]
[1760810862720,15.76723244,3896.0,3895.9,0.002]
[1760810863156,8.67375444,3896.0,3895.9,0.002]
[1760810863457,16.40450344,3896.0,3895.9,0.002]
[1760810863654,18.17725078,3896.0,3895.9,0.002]
[1760810864155,10.44650178,3896.0,3895.9,0.002]
[1760810864477,18.04769478,3896.0,3895.9,0.002]
[1760810864636,16.93359478,3896.0,3895.9,0.002]
[1760810865363,17.30242504,3896.0,3895.9,0.002]
[1760810866332,25.75394004,3896.0,3895.9,0.002]
[1760810866537,26.15662334,3896.0,3895.9,0.002]
[1760810867268,11.21667634,3896.0,3895.9,0.002]
[1760810867569,28.816355,3896.0,3895.9,0.002]
[1760810867757,19.81369,3896.0,3895.9,0.002]
[1760810868372,20.263062,3896.0,3895.9,0.002]
[1760810869374,41.171929,3896.0,3895.9,0.002]
[1760810869667,2.56731205,3895.2,3894.5,0.18805]
[1760810869890,2.3616,3894.8,3894.5,0.18805]
[1760810870241,2.3616,3894.8,3894.5,0.61655]
[1760810870570,2.40635252,3894.8,3894.5,0.61655]
[1760810870937,2.40635252,3894.8,3894.5,0.18805]
[1760810871177,0.67835252,3894.8,3894.6,0.4285]
[1760810872180,0.7616,3894.6,3894.5,0.18805]
[1760810872359,0.7616,3894.6,3894.5,0.61655]
[1760810873184,0.6336,3894.5,3894.3,0.2288]
[1760810873675,0.6336,3894.7,3894.3,0.2288]
[1760810874076,0.6336,3894.7,3894.4,0.4285]
[1760810874474,0.6336,3894.7,3894.3,0.2288]
[1760810874680,0.6336,3894.7,3894.4,0.4285]
[1760810875263,0.6336,3894.7,3893.3,2.99698889]
[1760810875264,0.6336,3894.5,3894.0,0.6434]
[1760810875448,0.6336,3894.5,3894.1,0.4285]
[1760810875649,0.6336,3894.5,3894.0,0.6434]
[1760810875879,0.67835713,3894.5,3894.1,0.4285]
[1760810876386,0.6336,3894.5,3894.1,0.4285]
[1760810877587,0.6336,3894.5,3894.2,0.4285]
[1760810878467,0.6336,3894.5,3894.0,0.2169]
[1760810878468,0.6336,3894.5,3894.3,0.4285]
[1760810878781,0.40272659,3895.0,3894.4,0.4285]
[1760810879082,0.04475637,3894.5,3894.4,0.4285]
[1760810879280,0.6336,3894.9,3894.4,0.4285]
[1760810879488,0.04475523,3894.5,3894.4,0.4285]
[1760810881699,0.04475523,3894.5,3894.4,2.99628964]
[1760810881995,0.04475523,3894.5,3894.4,3.55271681]
[1760810882794,0.04475523,3894.5,3894.4,3.5783947]
[1760810883203,0.04475523,3894.5,3894.4,3.68071681]
[1760810883373,0.001,3895.1,3894.4,1.01060506]
[1760810883567,0.04574727,3895.1,3894.9,2.56739478]
[1760810883966,0.04574727,3895.1,3895.0,0.4285]
[1760810886199,0.001,3895.1,3895.0,0.4285]
[1760810890008,0.001,3895.1,3894.8,0.128]
[1760810890215,0.128,3895.0,3894.5,0.4354]
[1760810890512,0.128,3895.0,3894.6,0.4354]
[1760810891016,0.04474839,3894.9,3894.7,0.4354]
[1760810892597,0.04474839,3894.9,3894.5,0.172747]
[1760810892797,0.04474839,3894.9,3894.8,0.4354]
[1760810893308,0.04474839,3894.9,3894.5,0.172747]
[1760810893674,0.6336,3894.8,3894.0,0.6523]
[1760810893877,0.128,3894.6,3894.0,0.6523]
[1760810894108,0.128,3894.6,3894.2,0.128]
[1760810894498,0.17275054,3894.6,3894.3,0.4354]
[1760810894702,0.17275054,3894.6,3894.4,0.4354]
[1760810894912,0.17275054,3894.6,3894.2,0.128]
[1760810895101,0.17275054,3894.6,3894.3,0.4354]
[1760810895301,0.17275054,3894.6,3894.4,0.4354]
[1760810895528,0.17275054,3894.6,3894.2,0.128]
[1760810895729,0.17275054,3894.6,3894.5,0.4354]
[1760810896291,0.17275054,3894.6,3894.3,0.002]
[1760810896498,0.17275054,3894.6,3894.3,0.4374]
[1760810896698,0.17275054,3894.6,3894.4,0.4354]
[1760810897228,0.17275054,3894.6,3894.5,0.4354]
[1760810901435,0.04475054,3894.6,3894.5,3.00312371]
[1760810901738,0.04475054,3894.6,3894.5,3.56042127]
[1760810902307,0.04475054,3894.6,3894.5,3.68842127]
[1760810904839,0.04475054,3894.6,3894.5,3.81642127]
[1760810908038,0.04475054,3894.6,3894.5,3.8420985]
[1760810908243,0.04475054,3894.6,3894.5,3.81642127]
[1760810908742,0.001,3895.1,3895.0,2.56739409]
[1760810909147,0.001,3895.1,3895.0,3.00279409]
[1760810909348,0.001,3895.1,3895.0,3.13079409]
[1760810909855,0.001,3895.1,3895.0,0.128]
[1760810910320,0.001,3895.1,3894.9,2.69544627]
[1760810910527,0.001,3895.1,3895.0,2.56739409]
[1760810911242,0.001,3895.1,3895.0,3.00279409]
[1760810911441,0.001,3895.1,3894.9,3.26528591]
[1760810912056,0.001,3895.1,3894.9,0.128]
[1760810912228,0.001,3895.1,3894.3,0.4374]
[1760810912559,0.001,3895.1,3894.4,2.56778964]
[1760810913051,0.6336,3894.9,3894.3,0.002]
[1760810913273,0.04474903,3895.0,3894.5,2.56767934]
[1760810913452,0.04474903,3895.0,3894.4,0.02567789]
[1760810913762,0.04474903,3895.0,3894.6,0.4354]
[1760810914150,0.04474903,3895.0,3894.4,3.00317415]
[1760810914665,0.04474903,3895.0,3894.4,3.00517415]
[1760810914832,0.04474903,3895.0,3894.5,2.5677064]
[1760810915233,0.04474903,3895.0,3894.5,3.0018064]
[1760810916364,0.001,3895.1,3894.5,3.0018064]
[1760810916656,0.001,3895.1,3894.5,0.4341]
[1760810918662,0.001,3895.1,3894.5,3.00181031]
[1760810918967,0.001,3895.1,3894.5,0.4341]
[1760810919357,0.044749,3895.0,3894.5,3.00181259]
[1760810919557,0.044749,3895.0,3894.5,2.56771259]
[1760810919854,0.044749,3895.0,3894.6,0.4341]
[1760810920636,0.044749,3895.0,3894.7,0.4341]
[1760810921338,0.044749,3895.0,3894.8,0.4341]
[1760810921542,0.044749,3895.0,3894.9,2.56746001]
[1760810922065,0.044749,3895.0,3894.9,3.00156001]
[1760810927187,0.044749,3895.0,3894.9,3.02723461]
[1760810928390,0.044749,3895.0,3894.9,3.00156001]
[1760810929495,0.044749,3895.0,3894.9,3.02723461]
[1760810929889,0.044749,3895.0,3894.9,3.96084143]
[1760810930194,0.044749,3895.0,3894.9,3.98651603]
[1760810930692,0.044749,3895.0,3894.9,7.85651603]
[1760810930862,0.001,3895.1,3895.0,2.56739409]
[1760810931065,0.001,3895.1,3895.0,3.00149409]
[1760810931386,0.001,3895.1,3895.0,9.01449493]
[1760810932063,0.001,3895.1,3895.0,9.11742178]
[1760810936177,0.001,3895.1,3895.0,4.3108756]
[1760810936484,0.001,3895.1,3895.0,4.41380245]
[1760810940808,0.001,3895.1,3895.0,4.56747639]
[1760810940980,0.001,3895.1,3895.0,4.54180245]
[1760810941568,0.001,3895.1,3895.0,4.56747639]
[1760810941769,0.001,3895.1,3895.0,4.13337639]
[1760810941996,0.001,3895.1,3895.0,4.10770245]
[1760810942198,0.001,3895.1,3895.0,2.69539409]
[1760810943296,0.1,3895.1,3895.0,0.128]
[1760810943606,0.001,3895.1,3895.0,2.69539409]
[1760810945976,0.001,3895.1,3895.0,3.14839409]
[1760810949132,0.001,3895.1,3895.0,7.01839409]
[1760810949339,0.001,3895.1,3895.0,7.97698598]
[1760810949646,0.001,3895.1,3895.0,7.85498598]
[1760810952822,0.001,3895.1,3895.0,7.85698598]
[1760810953841,0.001,3895.1,3895.0,7.95991283]
[1760810955157,0.001,3895.1,3895.0,12.66353216]
[1760810955978,0.001,3895.1,3895.0,14.39153216]
[1760810961061,0.001,3895.5,3895.4,2.56713046]
[1760810961263,0.001,3895.5,3895.4,7.33646973]
[1760810961662,0.001,3895.5,3895.4,7.46446973]
[1760810961968,0.001,3895.5,3895.4,7.56738466]
[1760810962158,0.001,3895.5,3895.4,8.03498466]
[1760810963144,0.001,3895.5,3895.4,7.56738466]
[1760810963353,0.001,3895.5,3895.4,7.46446973]
[1760810963551,0.001,3895.5,3895.4,6.56413046]
[1760810970579,0.001,3895.5,3895.4,6.66705545]
[1760810970784,0.001,3895.5,3895.4,7.13465545]
[1760810971577,0.001,3895.5,3895.4,6.66705545]
[1760810972481,0.001,3895.5,3895.4,7.13465545]
[1760810972688,0.001,3895.5,3895.4,8.12732722]